[Event "*** SCC Grand Prix: Titled Tuesday Blitz"]
[Site "Chess.com"]
[Date "2020.08.25"]
[Round "6"]
[White "Dr_crypt"]
[Black "elcandado"]
[Result "1-0"]
[WhiteElo "2388"]
[BlackElo "2499"]
[TimeControl "180+1"]
[EndTime "11:09:04 PDT"]
[Termination "Dr_crypt won by resignation"]

1. d4 {[%clk 0:03:00.7]} 1... Nf6 {[%clk 0:02:59]} 2. Nf3 {[%clk 0:03:01]} 2...
d5 {[%clk 0:02:55.8]} 3. Bf4 {[%clk 0:03:00.8]} 3... e6 {[%clk 0:02:54.8]} 4. e3
{[%clk 0:03:00.1]} 4... Bd6 {[%clk 0:02:55.1]} 5. Bg3 {[%clk 0:03:00.3]} 5...
O-O {[%clk 0:02:54.4]} 6. Bd3 {[%clk 0:03:00.5]} 6... c5 {[%clk 0:02:54.9]} 7.
c3 {[%clk 0:03:00.7]} 7... Qc7 {[%clk 0:02:55.4]} 8. Bxd6 {[%clk 0:02:55.6]}
8... Qxd6 {[%clk 0:02:55]} 9. Ne5 {[%clk 0:02:56.5]} 9... Nfd7 {[%clk
0:02:19.7]} 10. f4 {[%clk 0:02:39.3]} 10... g6 {[%clk 0:02:16]} 11. Nd2 {[%clk
0:02:35.4]} 11... f6 {[%clk 0:02:15.5]} 12. Nxg6 {[%clk 0:02:27.4]} 12... hxg6
{[%clk 0:02:14.6]} 13. Bxg6 {[%clk 0:02:28.3]} 13... Kg7 {[%clk 0:01:56.4]} 14.
Qg4 {[%clk 0:02:21.2]} 14... Rg8 {[%clk 0:01:50.6]} 15. Qh5 {[%clk 0:01:55.3]}
15... Rh8 {[%clk 0:01:44]} 16. Qg4 {[%clk 0:01:54.8]} 16... Kf8 {[%clk
0:01:29.9]} 17. O-O-O {[%clk 0:01:51.4]} 17... f5 {[%clk 0:01:26.3]} 18. Qg3
{[%clk 0:01:44.2]} 18... Nf6 {[%clk 0:01:22.2]} 19. Nf3 {[%clk 0:01:40.7]} 19...
Qe7 {[%clk 0:01:15.5]} 20. Ne5 {[%clk 0:01:39.6]} 20... Qg7 {[%clk 0:01:13.6]}
21. h4 {[%clk 0:01:38.1]} 21... Nc6 {[%clk 0:01:04.7]} 22. h5 {[%clk 0:01:36.8]}
22... Nxe5 {[%clk 0:01:03.9]} 23. fxe5 {[%clk 0:01:35.4]} 23... Ne4 {[%clk
0:00:55.9]} 24. Qf3 {[%clk 0:01:25]} 24... cxd4 {[%clk 0:00:48.5]} 25. cxd4
{[%clk 0:01:21.5]} 25... Ke7 {[%clk 0:00:45.1]} 26. g4 {[%clk 0:01:20.4]} 26...
fxg4 {[%clk 0:00:40.9]} 27. Qxg4 {[%clk 0:01:20.3]} 27... Qh6 {[%clk 0:00:29.2]}
28. Rh3 {[%clk 0:01:06.6]} 28... Qg5 {[%clk 0:00:26.7]} 29. Qxg5+ {[%clk
0:00:58.6]} 29... Nxg5 {[%clk 0:00:27.6]} 30. Rg3 {[%clk 0:00:58.9]} 30... Nf7
{[%clk 0:00:22.2]} 31. Bxf7 {[%clk 0:00:56.5]} 31... Kxf7 {[%clk 0:00:23.1]} 32.
Rf1+ {[%clk 0:00:56.2]} 32... Ke8 {[%clk 0:00:23.3]} 33. Rg7 {[%clk 0:00:51.7]}
33... Bd7 {[%clk 0:00:17.4]} 34. Rff7 {[%clk 0:00:50.2]} 34... Rc8+ {[%clk
0:00:17.7]} 35. Kd2 {[%clk 0:00:49.5]} 35... Rc7 {[%clk 0:00:17.4]} 36. Re7+
{[%clk 0:00:43]} 36... Kd8 {[%clk 0:00:17.3]} 37. Ref7 {[%clk 0:00:42.7]} 37...
Rxh5 {[%clk 0:00:14.2]} 38. Rg8+ {[%clk 0:00:41.1]} 38... Be8 {[%clk 0:00:13.4]}
39. Rxe8+ {[%clk 0:00:41.6]} 39... Kxe8 {[%clk 0:00:13.1]} 40. Rxc7 {[%clk
0:00:42.5]} 40... Rh2+ {[%clk 0:00:12.2]} 41. Kc3 {[%clk 0:00:42.4]} 41... Re2
{[%clk 0:00:11.9]} 42. Rxb7 {[%clk 0:00:41.3]} 42... Rxe3+ {[%clk 0:00:11.9]}
43. Kb4 {[%clk 0:00:41.6]} 43... Rd3 {[%clk 0:00:09.7]} 44. Kc5 {[%clk
0:00:41.5]} 44... a5 {[%clk 0:00:10.2]} 45. Kd6 {[%clk 0:00:40.2]} 45... Rxd4
{[%clk 0:00:09.6]} 46. Kxe6 {[%clk 0:00:40.4]} 46... Kd8 {[%clk 0:00:08.9]} 47.
Kd6 {[%clk 0:00:40.3]} 47... Kc8 {[%clk 0:00:08.7]} 48. Ra7 {[%clk 0:00:39.4]}
48... Rd2 {[%clk 0:00:07.9]} 49. e6 {[%clk 0:00:38.6]} 49... Rxb2 {[%clk
0:00:07.7]} 50. e7 {[%clk 0:00:38.8]} 50... Re2 {[%clk 0:00:07.1]} 51. Ra8+
{[%clk 0:00:39.2]} 51... Kb7 {[%clk 0:00:07.6]} 52. e8=Q {[%clk 0:00:39.9]}
52... Rxe8 {[%clk 0:00:08.5]} 53. Rxe8 {[%clk 0:00:40.8]} 53... Kb6 {[%clk
0:00:09.4]} 54. Kxd5 {[%clk 0:00:41.2]} 54... Kb5 {[%clk 0:00:10.3]} 55. Rb8+
{[%clk 0:00:41.1]} 55... Ka4 {[%clk 0:00:11.2]} 56. Kc4 {[%clk 0:00:41.4]} 56...
Ka3 {[%clk 0:00:12.1]} 57. Kc3 {[%clk 0:00:41.3]} 57... Kxa2 {[%clk 0:00:13]}
58. Ra8 {[%clk 0:00:40.5]} 58... a4 {[%clk 0:00:13.9]} 59. Rxa4+ {[%clk
0:00:40.5]} 1-0

[Event "*** SCC Grand Prix: Titled Tuesday Blitz"]
[Site "Chess.com"]
[Date "2020.08.25"]
[Round "6"]
[White "Chessbard1972"]
[Black "fish7728"]
[Result "1-0"]
[WhiteElo "2404"]
[BlackElo "2190"]
[TimeControl "180+1"]
[EndTime "11:09:04 PDT"]
[Termination "Chessbard1972 won on time"]

1. e4 {[%clk 0:03:00.9]} 1... c5 {[%clk 0:02:59.9]} 2. d4 {[%clk 0:02:57.2]}
2... cxd4 {[%clk 0:02:59.7]} 3. c3 {[%clk 0:02:57.1]} 3... d3 {[%clk 0:03:00.4]}
4. c4 {[%clk 0:02:56.8]} 4... e6 {[%clk 0:03:00.4]} 5. Bxd3 {[%clk 0:02:57.1]}
5... a6 {[%clk 0:03:00.7]} 6. Nf3 {[%clk 0:02:56.4]} 6... Qc7 {[%clk 0:03:01.2]}
7. O-O {[%clk 0:02:55.5]} 7... d6 {[%clk 0:03:01.3]} 8. b3 {[%clk 0:02:54.5]}
8... Nf6 {[%clk 0:03:01.4]} 9. Bb2 {[%clk 0:02:54.3]} 9... Be7 {[%clk 0:03:02]}
10. Nc3 {[%clk 0:02:53.7]} 10... O-O {[%clk 0:03:00.9]} 11. Rc1 {[%clk
0:02:53.7]} 11... Nbd7 {[%clk 0:03:00.9]} 12. Qe2 {[%clk 0:02:52]} 12... b6
{[%clk 0:03:01.1]} 13. Rfd1 {[%clk 0:02:51.6]} 13... Bb7 {[%clk 0:03:01.3]} 14.
Bb1 {[%clk 0:02:51.9]} 14... Rac8 {[%clk 0:03:00.4]} 15. Nd4 {[%clk 0:02:50.8]}
15... Qb8 {[%clk 0:02:57.8]} 16. f3 {[%clk 0:02:49.8]} 16... Rfe8 {[%clk
0:02:54.5]} 17. Qf2 {[%clk 0:02:47.5]} 17... Bd8 {[%clk 0:02:54.6]} 18. Kh1
{[%clk 0:02:46.4]} 18... Bc7 {[%clk 0:02:54.2]} 19. Qg1 {[%clk 0:02:46.3]} 19...
Nf8 {[%clk 0:02:17.7]} 20. Nde2 {[%clk 0:02:42.2]} 20... Ng6 {[%clk 0:02:16.1]}
21. Ng3 {[%clk 0:02:39.2]} 21... h5 {[%clk 0:02:15.1]} 22. Qf2 {[%clk
0:02:34.2]} 22... h4 {[%clk 0:02:10.2]} 23. Nf1 {[%clk 0:02:33.9]} 23... h3
{[%clk 0:02:07.1]} 24. g3 {[%clk 0:02:31.9]} 24... d5 {[%clk 0:02:03.6]} 25.
exd5 {[%clk 0:02:26.8]} 25... exd5 {[%clk 0:02:03.1]} 26. Nxd5 {[%clk
0:02:20.2]} 26... Nxd5 {[%clk 0:01:59.1]} 27. cxd5 {[%clk 0:02:20]} 27... Be5
{[%clk 0:01:44.9]} 28. Rxc8 {[%clk 0:02:14.4]} 28... Rxc8 {[%clk 0:01:40.2]} 29.
Be4 {[%clk 0:02:10.1]} 29... Bxb2 {[%clk 0:01:15.2]} 30. Qxb2 {[%clk 0:02:09.1]}
30... Ne5 {[%clk 0:01:12.2]} 31. Ne3 {[%clk 0:02:01.3]} 31... Re8 {[%clk
0:01:10.2]} 32. Nf5 {[%clk 0:01:58.6]} 32... f6 {[%clk 0:01:04.2]} 33. Qd2
{[%clk 0:01:48.8]} 33... g6 {[%clk 0:00:35.1]} 34. Ne3 {[%clk 0:01:25.1]} 34...
f5 {[%clk 0:00:34]} 35. Bxf5 {[%clk 0:01:15.8]} 35... Nxf3 {[%clk 0:00:15.7]}
36. Qf2 {[%clk 0:01:10.6]} 36... gxf5 {[%clk 0:00:11.7]} 37. Qxf3 {[%clk
0:01:08.9]} 37... Qe5 {[%clk 0:00:11.7]} 38. Nf1 {[%clk 0:00:37.5]} 38... Qe4
{[%clk 0:00:10.1]} 39. Qxe4 {[%clk 0:00:35.4]} 39... fxe4 {[%clk 0:00:07.3]} 40.
Ne3 {[%clk 0:00:34.9]} 40... Rf8 {[%clk 0:00:06.6]} 41. d6 {[%clk 0:00:30.3]}
41... Rd8 {[%clk 0:00:04]} 42. Kg1 {[%clk 0:00:24.5]} 42... Kf7 {[%clk
0:00:04.3]} 43. Nc4 {[%clk 0:00:18.9]} 43... b5 {[%clk 0:00:03.1]} 44. Ne3
{[%clk 0:00:14.9]} 44... Ke6 {[%clk 0:00:02.7]} 45. Kf2 {[%clk 0:00:12.8]} 45...
Rxd6 {[%clk 0:00:02.2]} 46. Rxd6+ {[%clk 0:00:12]} 46... Kxd6 {[%clk 0:00:02.3]}
47. g4 {[%clk 0:00:11.1]} 47... Ke5 {[%clk 0:00:01.8]} 48. Kg3 {[%clk 0:00:09]}
48... Kd4 {[%clk 0:00:01.8]} 49. Nf5+ {[%clk 0:00:08.4]} 49... Kd3 {[%clk
0:00:01.2]} 50. Kf4 {[%clk 0:00:08.3]} 1-0

[Event "*** SCC Grand Prix: Titled Tuesday Blitz"]
[Site "Chess.com"]
[Date "2020.08.25"]
[Round "6"]
[White "x-0414717230"]
[Black "Natalya_Buksa"]
[Result "1/2-1/2"]
[WhiteElo "2710"]
[BlackElo "2502"]
[TimeControl "180+1"]
[EndTime "11:09:05 PDT"]
[Termination "Game drawn by repetition"]

1. d4 {[%clk 0:03:00.9]} 1... d5 {[%clk 0:02:58.9]} 2. c4 {[%clk 0:03:00.5]}
2... e6 {[%clk 0:02:59.4]} 3. Nf3 {[%clk 0:03:00.8]} 3... Nf6 {[%clk 0:02:59.9]}
4. Nc3 {[%clk 0:03:01.3]} 4... Be7 {[%clk 0:03:00.2]} 5. Bf4 {[%clk 0:03:00.7]}
5... O-O {[%clk 0:03:00]} 6. e3 {[%clk 0:03:01]} 6... b6 {[%clk 0:03:00.5]} 7.
Bd3 {[%clk 0:02:59.5]} 7... Bb7 {[%clk 0:03:00.3]} 8. cxd5 {[%clk 0:02:59.7]}
8... Nxd5 {[%clk 0:03:00]} 9. Nxd5 {[%clk 0:02:59.3]} 9... exd5 {[%clk
0:03:00.4]} 10. O-O {[%clk 0:02:59.3]} 10... Nd7 {[%clk 0:02:59.8]} 11. Ne5
{[%clk 0:02:59.4]} 11... Nxe5 {[%clk 0:02:59.9]} 12. dxe5 {[%clk 0:02:59.3]}
12... c5 {[%clk 0:02:51.9]} 13. Qh5 {[%clk 0:02:59.1]} 13... g6 {[%clk
0:02:49.8]} 14. Qh6 {[%clk 0:02:59.4]} 14... Re8 {[%clk 0:02:48.9]} 15. e6
{[%clk 0:02:59.6]} 15... Rf8 {[%clk 0:02:37.5]} 16. Be5 {[%clk 0:02:09]} 16...
Bf6 {[%clk 0:02:30.6]} 17. f4 {[%clk 0:02:09.2]} 17... Qe7 {[%clk 0:02:20.3]}
18. Bxf6 {[%clk 0:01:49.9]} 18... Qxf6 {[%clk 0:02:20.2]} 19. f5 {[%clk
0:01:50.5]} 19... fxe6 {[%clk 0:01:29]} 20. fxg6 {[%clk 0:01:45.8]} 20... Qg7
{[%clk 0:01:28.1]} 21. Qh3 {[%clk 0:00:46]} 21... e5 {[%clk 0:01:11.7]} 22. Rf7
{[%clk 0:00:23.5]} 22... Rxf7 {[%clk 0:01:09.7]} 23. gxf7+ {[%clk 0:00:23.3]}
23... Kh8 {[%clk 0:01:03.7]} 24. Rf1 {[%clk 0:00:22.1]} 24... e4 {[%clk
0:01:03.2]} 25. Bb5 {[%clk 0:00:16.4]} 25... Rf8 {[%clk 0:01:01.5]} 26. Qd7
{[%clk 0:00:16.4]} 26... Ba8 {[%clk 0:01:01.6]} 27. Qe8 {[%clk 0:00:15.5]} 27...
d4 {[%clk 0:00:58.2]} 28. Bc4 {[%clk 0:00:09.5]} 28... d3 {[%clk 0:00:43.3]} 29.
b3 {[%clk 0:00:09.1]} 29... a6 {[%clk 0:00:41.9]} 30. a4 {[%clk 0:00:08.4]}
30... b5 {[%clk 0:00:41.6]} 31. axb5 {[%clk 0:00:08.6]} 31... axb5 {[%clk
0:00:42.5]} 32. Bxb5 {[%clk 0:00:07.4]} 32... Bd5 {[%clk 0:00:42]} 33. Bc4
{[%clk 0:00:07.7]} 33... Bxc4 {[%clk 0:00:37.9]} 34. bxc4 {[%clk 0:00:08.6]}
34... h6 {[%clk 0:00:29.2]} 35. g3 {[%clk 0:00:08.8]} 35... d2 {[%clk
0:00:25.2]} 36. Qd7 {[%clk 0:00:07.1]} 36... d1=Q {[%clk 0:00:25.1]} 37. Qxd1
{[%clk 0:00:07.2]} 37... Rxf7 {[%clk 0:00:25.6]} 38. Rxf7 {[%clk 0:00:05.3]}
38... Qxf7 {[%clk 0:00:25.8]} 39. Qd8+ {[%clk 0:00:05.6]} 39... Kh7 {[%clk
0:00:26.1]} 40. Qb8 {[%clk 0:00:02.8]} 40... Qxc4 {[%clk 0:00:22.7]} 41. Qc7+
{[%clk 0:00:03.3]} 41... Kg6 {[%clk 0:00:22.4]} 42. Qc6+ {[%clk 0:00:03.9]}
42... Kf5 {[%clk 0:00:21.2]} 43. h3 {[%clk 0:00:03.8]} 43... Qc1+ {[%clk
0:00:20.1]} 44. Kg2 {[%clk 0:00:04.5]} 44... Qd2+ {[%clk 0:00:20.3]} 45. Kh1
{[%clk 0:00:05.2]} 45... Qe1+ {[%clk 0:00:20.1]} 46. Kg2 {[%clk 0:00:05.9]}
46... Qe2+ {[%clk 0:00:20.2]} 47. Kh1 {[%clk 0:00:06.6]} 47... Qf3+ {[%clk
0:00:20.6]} 48. Kh2 {[%clk 0:00:07.3]} 48... Qf2+ {[%clk 0:00:20.7]} 49. Kh1
{[%clk 0:00:08]} 49... Qxe3 {[%clk 0:00:21.1]} 50. Qd5+ {[%clk 0:00:07.8]} 50...
Kf6 {[%clk 0:00:21.2]} 51. Qd6+ {[%clk 0:00:08.2]} 51... Kg7 {[%clk 0:00:21]}
52. Qe7+ {[%clk 0:00:08.6]} 52... Kg6 {[%clk 0:00:20.9]} 53. Qe6+ {[%clk
0:00:09.1]} 53... Kg7 {[%clk 0:00:10.3]} 54. Qe7+ {[%clk 0:00:08.7]} 54... Kg6
{[%clk 0:00:10.7]} 55. Qe6+ {[%clk 0:00:09.3]} 55... Kg7 {[%clk 0:00:11.3]} 56.
Qe7+ {[%clk 0:00:09.9]} 1/2-1/2

[Event "*** SCC Grand Prix: Titled Tuesday Blitz"]
[Site "Chess.com"]
[Date "2020.08.25"]
[Round "6"]
[White "lucasmito"]
[Black "viniciusrego"]
[Result "0-1"]
[WhiteElo "2514"]
[BlackElo "2261"]
[TimeControl "180+1"]
[EndTime "11:09:08 PDT"]
[Termination "viniciusrego won by resignation"]

1. e4 {[%clk 0:03:00.9]} 1... c5 {[%clk 0:02:59.7]} 2. Nf3 {[%clk 0:02:59.6]}
2... d6 {[%clk 0:03:00.2]} 3. d4 {[%clk 0:02:59.8]} 3... cxd4 {[%clk 0:03:01.1]}
4. Nxd4 {[%clk 0:03:00.3]} 4... Nf6 {[%clk 0:03:01.7]} 5. Nc3 {[%clk 0:03:01.2]}
5... g6 {[%clk 0:03:02.3]} 6. Be3 {[%clk 0:03:01.7]} 6... Bg7 {[%clk 0:03:02.8]}
7. f3 {[%clk 0:03:02.4]} 7... O-O {[%clk 0:03:03.6]} 8. Qd2 {[%clk 0:03:02.9]}
8... Nc6 {[%clk 0:03:04.3]} 9. O-O-O {[%clk 0:03:02.7]} 9... Nxd4 {[%clk
0:03:03.7]} 10. Bxd4 {[%clk 0:03:02]} 10... Be6 {[%clk 0:03:04.6]} 11. Kb1
{[%clk 0:03:02.4]} 11... Qc7 {[%clk 0:03:05.1]} 12. h4 {[%clk 0:03:00.4]} 12...
Rfc8 {[%clk 0:03:05.3]} 13. h5 {[%clk 0:03:00.3]} 13... Qa5 {[%clk 0:03:00]} 14.
hxg6 {[%clk 0:02:59.5]} 14... hxg6 {[%clk 0:03:00.9]} 15. a3 {[%clk 0:02:58.7]}
15... Rab8 {[%clk 0:02:59.9]} 16. Nd5 {[%clk 0:02:57]} 16... Qxd2 {[%clk
0:02:59.1]} 17. Rxd2 {[%clk 0:02:53.7]} 17... Bxd5 {[%clk 0:02:55.8]} 18. exd5
{[%clk 0:02:52.5]} 18... a6 {[%clk 0:02:46.5]} 19. Be2 {[%clk 0:02:38.8]} 19...
Nd7 {[%clk 0:02:33.3]} 20. Be3 {[%clk 0:02:28.7]} 20... b5 {[%clk 0:02:30.1]}
21. f4 {[%clk 0:02:19.1]} 21... Rc7 {[%clk 0:02:09.3]} 22. Bd4 {[%clk
0:01:53.6]} 22... a5 {[%clk 0:01:53.5]} 23. Bxg7 {[%clk 0:01:47.5]} 23... Kxg7
{[%clk 0:01:54.4]} 24. Rd4 {[%clk 0:01:35.6]} 24... b4 {[%clk 0:01:41.1]} 25. a4
{[%clk 0:01:33.9]} 25... Rh8 {[%clk 0:01:29.7]} 26. Rxh8 {[%clk 0:01:29.6]}
26... Kxh8 {[%clk 0:01:30.6]} 27. Bb5 {[%clk 0:01:21.4]} 27... Nc5 {[%clk
0:01:25.9]} 28. c3 {[%clk 0:00:51.4]} 28... bxc3 {[%clk 0:01:18.6]} 29. bxc3
{[%clk 0:00:38.1]} 29... Kg7 {[%clk 0:01:16.2]} 30. Bc6 {[%clk 0:00:32.3]} 30...
Rc8 {[%clk 0:01:12.9]} 31. Ka2 {[%clk 0:00:28.3]} 31... Rh8 {[%clk 0:00:55.5]}
32. Rd2 {[%clk 0:00:27.6]} 32... Rh4 {[%clk 0:00:46.8]} 33. g3 {[%clk
0:00:19.6]} 33... Rh3 {[%clk 0:00:42.1]} 34. Rb2 {[%clk 0:00:15]} 34... Rxg3
{[%clk 0:00:38.1]} 35. c4 {[%clk 0:00:13.4]} 35... Rc3 {[%clk 0:00:26.6]} 36.
Bb5 {[%clk 0:00:11.9]} 36... Rf3 {[%clk 0:00:25.8]} 37. Re2 {[%clk 0:00:11.1]}
37... Kf6 {[%clk 0:00:24.5]} 38. Rh2 {[%clk 0:00:11.6]} 38... Rxf4 {[%clk
0:00:23.2]} 39. Rh8 {[%clk 0:00:10.8]} 39... g5 {[%clk 0:00:18.7]} 40. Ra8
{[%clk 0:00:11.3]} 40... Rf2+ {[%clk 0:00:17.7]} 41. Kb1 {[%clk 0:00:11.2]}
41... Rf1+ {[%clk 0:00:17]} 42. Kc2 {[%clk 0:00:11.3]} 42... Rf2+ {[%clk
0:00:17.6]} 43. Kd1 {[%clk 0:00:11.4]} 43... g4 {[%clk 0:00:17.1]} 44. Ke1
{[%clk 0:00:07.7]} 44... g3 {[%clk 0:00:17.1]} 45. Rg8 {[%clk 0:00:08.3]} 45...
Nd3+ {[%clk 0:00:17.5]} 46. Kd1 {[%clk 0:00:08.6]} 46... g2 {[%clk 0:00:18.3]}
47. c5 {[%clk 0:00:07.9]} 47... Rf1+ {[%clk 0:00:18.1]} 48. Kd2 {[%clk
0:00:08.4]} 48... g1=Q {[%clk 0:00:18.3]} 49. Rxg1 {[%clk 0:00:07.8]} 49... Rxg1
{[%clk 0:00:19.2]} 50. c6 {[%clk 0:00:08]} 50... Nb4 {[%clk 0:00:17.3]} 51. c7
{[%clk 0:00:07.1]} 51... Rg8 {[%clk 0:00:17.3]} 52. Bd7 {[%clk 0:00:05.5]} 52...
Nxd5 {[%clk 0:00:17.4]} 53. c8=Q {[%clk 0:00:06.4]} 53... Rxc8 {[%clk
0:00:17.4]} 54. Bxc8 {[%clk 0:00:07.3]} 54... Ke5 {[%clk 0:00:17.9]} 55. Kd3
{[%clk 0:00:06.5]} 55... Nb6 {[%clk 0:00:17.4]} 0-1

[Event "*** SCC Grand Prix: Titled Tuesday Blitz"]
[Site "Chess.com"]
[Date "2020.08.25"]
[Round "6"]
[White "dolynachess"]
[Black "chessfrendz"]
[Result "1-0"]
[WhiteElo "2423"]
[BlackElo "2228"]
[TimeControl "180+1"]
[EndTime "11:09:08 PDT"]
[Termination "dolynachess won by resignation"]

1. d4 {[%clk 0:02:57.5]} 1... Nf6 {[%clk 0:02:58.6]} 2. c4 {[%clk 0:02:57.7]}
2... c5 {[%clk 0:02:57.4]} 3. Nf3 {[%clk 0:02:56.7]} 3... cxd4 {[%clk 0:02:56]}
4. Nxd4 {[%clk 0:02:57.6]} 4... e5 {[%clk 0:02:55.7]} 5. Nc2 {[%clk 0:02:58]}
5... d5 {[%clk 0:02:54.7]} 6. cxd5 {[%clk 0:02:58.1]} 6... Qxd5 {[%clk
0:02:52.2]} 7. Qxd5 {[%clk 0:02:57.3]} 7... Nxd5 {[%clk 0:02:51.9]} 8. e4 {[%clk
0:02:50.6]} 8... Nb4 {[%clk 0:02:51.5]} 9. Nxb4 {[%clk 0:02:51.2]} 9... Bxb4+
{[%clk 0:02:50.3]} 10. Nc3 {[%clk 0:02:46.8]} 10... O-O {[%clk 0:02:48.1]} 11.
Bd2 {[%clk 0:02:46.6]} 11... Nc6 {[%clk 0:02:47.2]} 12. a3 {[%clk 0:02:46.5]}
12... Nd4 {[%clk 0:02:40]} 13. Rc1 {[%clk 0:02:39.6]} 13... Ba5 {[%clk
0:02:26.9]} 14. b4 {[%clk 0:02:34.3]} 14... Bd8 {[%clk 0:02:26.1]} 15. Be3
{[%clk 0:02:26.6]} 15... Nb3 {[%clk 0:02:24.6]} 16. Rd1 {[%clk 0:02:19.2]} 16...
Be6 {[%clk 0:02:23.3]} 17. Nd5 {[%clk 0:02:11.6]} 17... a5 {[%clk 0:02:21.2]}
18. Bc4 {[%clk 0:02:07.3]} 18... Nd4 {[%clk 0:02:19.8]} 19. Bxd4 {[%clk
0:02:04.6]} 19... exd4 {[%clk 0:02:18.7]} 20. Rxd4 {[%clk 0:02:05.5]} 20... axb4
{[%clk 0:02:17.6]} 21. axb4 {[%clk 0:02:04]} 21... Bxd5 {[%clk 0:01:51.2]} 22.
Bxd5 {[%clk 0:02:00.6]} 22... Bf6 {[%clk 0:01:47.9]} 23. Rd1 {[%clk 0:01:56.5]}
23... Bc3+ {[%clk 0:01:47.1]} 24. Ke2 {[%clk 0:01:56.5]} 24... Bxb4 {[%clk
0:01:46.7]} 25. Rb1 {[%clk 0:01:48.7]} 25... Bc5 {[%clk 0:01:38.1]} 26. Rxb7
{[%clk 0:01:47.4]} 26... Rab8 {[%clk 0:01:24.5]} 27. Bxf7+ {[%clk 0:01:36]}
27... Kh8 {[%clk 0:01:22.2]} 28. Rhb1 {[%clk 0:01:35.8]} 28... Ra8 {[%clk
0:01:07.9]} 29. f4 {[%clk 0:01:27.8]} 29... g6 {[%clk 0:01:06.2]} 30. e5 {[%clk
0:01:24.9]} 30... Ra3 {[%clk 0:01:02.7]} 31. Rc7 {[%clk 0:01:08.8]} 31... Re3+
{[%clk 0:00:57.2]} 32. Kd2 {[%clk 0:01:05.3]} 32... Rd8+ {[%clk 0:00:51.2]} 33.
Kc2 {[%clk 0:01:01.2]} 33... Re2+ {[%clk 0:00:49.1]} 34. Kc3 {[%clk 0:00:58.7]}
34... Be3 {[%clk 0:00:46.4]} 35. g3 {[%clk 0:00:47.8]} 35... Rxh2 {[%clk
0:00:40.5]} 36. Rbb7 {[%clk 0:00:38.3]} 36... Bf2 {[%clk 0:00:34.6]} 37. e6
{[%clk 0:00:33.7]} 37... Be1+ {[%clk 0:00:30.8]} 38. Kb3 {[%clk 0:00:30.6]}
38... Re2 {[%clk 0:00:26.1]} 39. e7 {[%clk 0:00:21.9]} 39... Rd3+ {[%clk
0:00:22.2]} 40. Kc4 {[%clk 0:00:21.8]} 40... Rc3+ {[%clk 0:00:21.2]} 41. Kd4
{[%clk 0:00:20.4]} 41... Rxc7 {[%clk 0:00:20.1]} 42. Rxc7 {[%clk 0:00:20.3]}
42... Bxg3 {[%clk 0:00:18.2]} 43. e8=Q+ {[%clk 0:00:17.3]} 43... Rxe8 {[%clk
0:00:17]} 44. Bxe8 {[%clk 0:00:18.2]} 44... Bxf4 {[%clk 0:00:16]} 45. Rd7 {[%clk
0:00:18.8]} 45... g5 {[%clk 0:00:14.2]} 46. Bh5 {[%clk 0:00:18.2]} 46... h6
{[%clk 0:00:11.8]} 47. Ke4 {[%clk 0:00:18.4]} 47... Bg3 {[%clk 0:00:10.9]} 48.
Kf5 {[%clk 0:00:18.7]} 48... Kg8 {[%clk 0:00:10.3]} 49. Kg6 {[%clk 0:00:18.7]}
49... Kf8 {[%clk 0:00:10.5]} 50. Kxh6 {[%clk 0:00:16.9]} 50... Bf4 {[%clk
0:00:10.3]} 51. Kg6 {[%clk 0:00:14.1]} 51... g4 {[%clk 0:00:09.7]} 52. Bxg4
{[%clk 0:00:12.5]} 1-0

[Event "*** SCC Grand Prix: Titled Tuesday Blitz"]
[Site "Chess.com"]
[Date "2020.08.25"]
[Round "6"]
[White "isainz"]
[Black "Region_07"]
[Result "1-0"]
[WhiteElo "2135"]
[BlackElo "2369"]
[TimeControl "180+1"]
[EndTime "11:09:09 PDT"]
[Termination "isainz won by checkmate"]

1. e4 {[%clk 0:03:00.9]} 1... Nc6 {[%clk 0:02:58.5]} 2. Nf3 {[%clk 0:02:58.8]}
2... d6 {[%clk 0:02:58]} 3. d4 {[%clk 0:02:57.3]} 3... g6 {[%clk 0:02:57.9]} 4.
Nc3 {[%clk 0:02:56]} 4... Bg7 {[%clk 0:02:56.8]} 5. h3 {[%clk 0:02:54.9]} 5...
Nf6 {[%clk 0:02:54.8]} 6. Be3 {[%clk 0:02:51.4]} 6... O-O {[%clk 0:02:52]} 7.
Bd3 {[%clk 0:02:51.2]} 7... e5 {[%clk 0:02:45.8]} 8. dxe5 {[%clk 0:02:50.6]}
8... Nxe5 {[%clk 0:02:46.4]} 9. Nxe5 {[%clk 0:02:50.4]} 9... dxe5 {[%clk
0:02:47.3]} 10. O-O {[%clk 0:02:49.3]} 10... c6 {[%clk 0:02:42.9]} 11. Ne2
{[%clk 0:02:40.4]} 11... Nh5 {[%clk 0:02:41.4]} 12. a4 {[%clk 0:02:28.1]} 12...
a5 {[%clk 0:02:27.3]} 13. Qd2 {[%clk 0:02:27.3]} 13... Be6 {[%clk 0:02:20.8]}
14. Rad1 {[%clk 0:02:17.5]} 14... Qc7 {[%clk 0:02:05.1]} 15. Qc3 {[%clk
0:02:10.1]} 15... Nf4 {[%clk 0:02:02.4]} 16. Nxf4 {[%clk 0:02:03.3]} 16... exf4
{[%clk 0:02:03.3]} 17. Bd4 {[%clk 0:02:03.5]} 17... Bxd4 {[%clk 0:01:55.2]} 18.
Qxd4 {[%clk 0:02:03.5]} 18... f3 {[%clk 0:01:56]} 19. e5 {[%clk 0:01:51.7]}
19... Rad8 {[%clk 0:01:49.8]} 20. Qe3 {[%clk 0:01:49.3]} 20... fxg2 {[%clk
0:01:41.7]} 21. Kxg2 {[%clk 0:01:49.3]} 21... Bd5+ {[%clk 0:01:40.2]} 22. Kg1
{[%clk 0:01:37.8]} 22... Rfe8 {[%clk 0:01:22.1]} 23. f4 {[%clk 0:01:36.3]} 23...
f6 {[%clk 0:01:11.2]} 24. c4 {[%clk 0:01:22.6]} 24... Bf7 {[%clk 0:00:57.8]} 25.
Rfe1 {[%clk 0:01:22.4]} 25... fxe5 {[%clk 0:00:43.3]} 26. fxe5 {[%clk
0:01:22.5]} 26... Re7 {[%clk 0:00:36.3]} 27. Re2 {[%clk 0:00:24.5]} 27... Rde8
{[%clk 0:00:35.6]} 28. Rde1 {[%clk 0:00:24.3]} 28... Rxe5 {[%clk 0:00:26.7]} 29.
Qxe5 {[%clk 0:00:21.7]} 29... Rxe5 {[%clk 0:00:27.2]} 30. Rxe5 {[%clk
0:00:21.7]} 30... Qb6+ {[%clk 0:00:27.4]} 31. Kg2 {[%clk 0:00:17.4]} 31... Qxb2+
{[%clk 0:00:27.1]} 32. Kg3 {[%clk 0:00:16.8]} 32... Qd4 {[%clk 0:00:25.7]} 33.
R1e3 {[%clk 0:00:15.1]} 33... Bxc4 {[%clk 0:00:19.8]} 34. Re8+ {[%clk
0:00:10.9]} 34... Kg7 {[%clk 0:00:18]} 35. Bxc4 {[%clk 0:00:09.9]} 35... Qxc4
{[%clk 0:00:17.2]} 36. R8e7+ {[%clk 0:00:09.3]} 36... Kh6 {[%clk 0:00:16.8]} 37.
Rxb7 {[%clk 0:00:07.6]} 37... Qd4 {[%clk 0:00:12.9]} 38. Ree7 {[%clk 0:00:06.8]}
38... Qd2 {[%clk 0:00:13.1]} 39. Rxh7+ {[%clk 0:00:05.5]} 39... Kg5 {[%clk
0:00:13.8]} 40. h4+ {[%clk 0:00:04.3]} 40... Kf6 {[%clk 0:00:14.1]} 41. Rhf7+
{[%clk 0:00:03.8]} 41... Ke6 {[%clk 0:00:13.9]} 42. Rbe7+ {[%clk 0:00:03.8]}
42... Kd6 {[%clk 0:00:14.2]} 43. Rd7+ {[%clk 0:00:04.4]} 43... Kc5 {[%clk
0:00:14.9]} 44. Rxd2 {[%clk 0:00:04.9]} 44... Kc4 {[%clk 0:00:15.5]} 45. Rc2+
{[%clk 0:00:05.1]} 45... Kb4 {[%clk 0:00:15.8]} 46. Rxc6 {[%clk 0:00:05.5]}
46... Kxa4 {[%clk 0:00:14.7]} 47. Rxg6 {[%clk 0:00:06.1]} 47... Kb3 {[%clk
0:00:14.1]} 48. Rf4 {[%clk 0:00:06]} 48... a4 {[%clk 0:00:13.7]} 49. Ra6 {[%clk
0:00:04.2]} 49... a3 {[%clk 0:00:13.6]} 50. Rfa4 {[%clk 0:00:02.7]} 50... a2
{[%clk 0:00:12.7]} 51. Rxa2 {[%clk 0:00:02.7]} 51... Kb4 {[%clk 0:00:10.8]} 52.
R2a5 {[%clk 0:00:02.9]} 52... Kc3 {[%clk 0:00:11.7]} 53. Rb6 {[%clk 0:00:02.7]}
53... Kc4 {[%clk 0:00:12.6]} 54. Rab5 {[%clk 0:00:02.1]} 54... Kd3 {[%clk
0:00:12.3]} 55. Rc5 {[%clk 0:00:02.1]} 55... Kd2 {[%clk 0:00:13.2]} 56. Rd6+
{[%clk 0:00:01.9]} 56... Ke3 {[%clk 0:00:14.1]} 57. Re5# {[%clk 0:00:01.8]} 1-0